Cogmind - Beta 16.1 @@@ ROGUE MODE // 2026.04.11 @ 20:25:58 Player: Lazz Result: Destroyed by G-34 Mercenary with Small Laser Performance ------------- Evolutions (0) 0 Regions Visited (1) 200 Robots Destroyed (15) 75 Value Destroyed (237) 237 Prototype IDs (0) 0 Alien Tech Used (0) 0 Bonus (0) 0 TOTAL SCORE: 512 Bonus ------- None Cogmind --------- Core Integrity 0/250 Matter 138/300 Energy 10/100 System Corruption 0% Temperature Cool (60) Movement Rolling (100) Location -10/Materials Parts ------- > --- POWER (1) -------- (None) > --- PROPULSION (2) --- Compact Wheel > --- UTILITY (2) ------ Small Storage Unit Seismic Detector > --- WEAPON (2) ------- Light Assault Rifle > --- INVENTORY (8) ---- Improved Heat Sink Medium Matter Pod (100) Sensor Array Signal Interpreter Peak State ------------ > --- POWER ------------ Ion Engine > --- PROPULSION ------- Light Treads Light Treads > --- UTILITY ---------- Small Storage Unit Seismic Detector > --- WEAPON ----------- Assault Rifle Assault Rifle > --- INVENTORY -------- Compact Wheel Improved Heat Sink Medium Matter Pod Sensor Array Signal Interpreter Light Assault Rifle Light Assault Rifle Mining Laser [Rating: 8] Favorites ----------- Power Ion Engine Engine Ion Engine Propulsion Light Treads Treads Light Treads Wheel Compact Wheel Utility Small Storage Unit Device Seismic Detector Storage Small Storage Unit Weapon Assault Rifle Ballistic Gun Assault Rifle Special Weapon Mining Laser Build | -11 -10 ------- Run | Yrd Mat Slots Evolved . | . . Power . | . . Propulsion . | . . Utility . | . . Weapon . | . . Parts Attached 15 | 8 7 Power 2 | 1 1 Engine 2 | 1 1 Core . | . . Reactor . | . . Propulsion 5 | 2 3 Treads 4 | 2 2 Leg . | . . Wheel 1 | . 1 Hover . | . . Flight . | . . Utility 3 | 2 1 Device 2 | 1 1 Storage 1 | 1 . Processor . | . . Hackware . | . . Protection . | . . Artifact . | . . Weapon 5 | 3 2 Energy Gun . | . . Energy Cannon . | . . Ballistic Gun 4 | 3 1 Ballistic Cannon . | . . Launcher . | . . Special Weapon 1 | . 1 Impact Weapon . | . . Slashing Weapon . | . . Piercing Weapon . | . . Special Melee Weapon . | . . Unidentified Prototypes . | . . Parts Lost 7 | . 7 Power 1 | . 1 Propulsion 2 | . 2 Utility . | . . Weapon 4 | . 4 Highest Loss Streak 7 | . 7 To Critical Strikes . | . . Average Backups 5 | 2 6 Power . | . . Propulsion . | . . Utility 2 | . 3 Weapon 1 | . 2 Tool/Special . | . . Unused Backups 4 | . 4 Power . | . . Propulsion . | . . Utility 4 | . 4 Weapon . | . . Tool/Special . | . . Average Slot Usage (%) 96 | . 96 Engine 12 | . 12 Treads 26 | . 26 Device 14 | . 14 Storage 14 | . 14 Ballistic Gun 25 | . 25 Special Weapon 1 | . 1 Peak Build Rating 8 | 7 8 Average Rating 6 | 5 7 On Entrance 3 | . 7 Avg Prop Armor Cover (%) . | . . Naked Turns . | . . Heaviest Build 15 | 13 15 Greatest Support 40 | 40 40 Greatest Overweight (x) . | . . Average Overweight (x) . | . . Largest Inventory Capacity 8 | 8 8 Average Capacity 7 | 7 8 Most Carried 8 | 5 8 Average Carried 5 | 2 6 Final Capacity 8 | 8 8 Final Carried 5 | 5 4 Class Distribution -------------------- 100% | Mutant Dominant Class ---------------- Mutant | -10/Materials Resources | -11 -10 ----------- Run | Yrd Mat Matter Collected 597 | 435 162 Remotely . | . . Salvage Created 449 | 188 261 Parts 32 | 11 21 Haulers Intercepted 1 | . 1 Recyclers Shooed 1 | 1 . Parts Field Recycled . | . . Retrieved Matter . | . . Parts Self-Destructed . | . . Prevented . | . . Parts Restored . | . . Kills | -11 -10 ------- Run | Yrd Mat Combat Hostiles Destroyed 7 | . 7 Guns 7 | . 7 Classes Destroyed 6 | 3 3 Worker 2 | 2 . Tunneler 4 | 3 1 Hauler 1 | . 1 Recycler 1 | 1 . Swarmer 3 | . 3 Grunt 4 | . 4 Best Kill Streak 4 | 4 3 Combat Bots Only 3 | . 3 Max Kills in Single Turn 1 | 1 1 Gunslinging . | . . Exploded . | . . Melee . | . . Uniques/NPCs Destroyed . | . . Combat | -11 -10 -------- Run | Yrd Mat Hostile Shots Fired 119 | . 119 Missed 24 | . 24 Hits 95 | . 95 Projectile 95 | . 95 Critical Strikes 1 | . 1 Damage Taken 1117 | . 1117 Core 256 | . 256 Absorbed by Shields . | . . Core Remaining (%) 100 | 100 . Volleys Fired 55 | 11 44 Largest 2 | 2 2 Hottest 120 | 40 120 Shots Fired 107 | 22 85 Gun 103 | 22 81 Cannon . | . . Launcher . | . . Special 4 | . 4 Kinetic 103 | 22 81 Thermal 4 | . 4 Explosive . | . . Electromagnetic . | . . Robot Hit Streak 12 | 7 12 Robot Miss Streak 2 | 2 2 Penetration Max . | . . Secondary Targets 1 | . 1 Max Gunslinging Chain 1 | . 1 Shots Hit Robots 79 | 15 64 Core Hits 22 | 6 16 Critical Kills . | . . Critical Parts Destroyed 1 | . 1 Critical Strikes 1 | . 1 Destroy 1 | . 1 Melee Attacks . | . . Impact . | . . Slashing . | . . Piercing . | . . Sneak Attacks . | . . Combat Hostiles . | . . Follow-up Attacks . | . . Damage Inflicted 1045 | 201 844 Guns 973 | 201 772 Cannons . | . . Explosions . | . . Melee . | . . Ramming . | . . Kinetic 973 | 201 772 Thermal 72 | . 72 Explosive . | . . Electromagnetic . | . . Impact . | . . Slashing . | . . Piercing . | . . Highest Corruption . | . . Average Corruption . | . . Corruption Purged . | . . Corruption Blocked . | . . Overload Shots . | . . Overflow Damage . | . . Projectiles . | . . Explosions . | . . Melee . | . . Knockbacks . | . . Impact . | . . Kinetic . | . . Secondary . | . . Self-Inflicted Damage . | . . Shots . | . . Rammed . | . . Targets Rammed . | . . Kicked . | . . Crushed . | . . Highest Temperature 111 | . 111 Average Temperature 24 | . 24 Received Heat Transfer 621 | . 621 Siege Activations . | . . Martial Activations . | . . Shielding Activations . | . . Robots Disrupted . | . . Combat Hostiles . | . . Robots Corrupted . | . . Combat Hostiles . | . . Parts Fried . | . . Impact Corruptions . | . . Robots Melted . | . . Combat Hostiles . | . . Parts Melted . | . . Heat Transferred 150 | . 150 Parts Sabotaged . | . . Parts Stolen . | . . Parts Stripped . | . . Power Chain Reactions . | . . Alert | -11 -10 ------- Run | Yrd Mat Maximum Alert Level . | . . Low Security (%) 100 | 100 100 Level 1 . | . . Level 2 . | . . Level 3 . | . . Level 4 . | . . Level 5 . | . . High Security . | . . Max Security . | . . Peak Influence 111 | 15 111 Initial . | . . Average 39 | 2 54 Influence Increases 283 | 30 253 Destroy 0b10 Robot/C 140 | . 140 Destroy 0b10 Robot/NC 40 | 30 10 Destroy Leader 32 | . 32 Successful Hack 26 | . 26 Disable Machine 30 | . 30 Partial Spotted 15 | . 15 Influence Decreases 283 | 30 253 Time Decay 227 | 30 197 Lost Part 56 | . 56 Squads Dispatched 3 | . 3 Investigation 1 | . 1 Extermination . | . . Reinforcement 2 | . 2 Assault . | . . Garrison . | . . Intercept . | . . Searches Triggered . | . . Construction Impeded . | . . Haulers Reinforced . | . . Active Scanning Responses . | . . Cargo Convoy Interrupts . | . . Stealth | -11 -10 --------- Run | Yrd Mat Distress Signals 2 | . 2 Communications Jammed . | . . Distress Signals . | . . Times Spotted 16 | . 16 Peak Tracking Total 6 | . 6 Tactical Retreats . | . . Traps | -11 -10 ------- Run | Yrd Mat Traps Triggered 1 | . 1 Indirectly . | . . Trap Hack Attempts . | . . Triggered . | . . Disarmed . | . . Reprogrammed . | . . Reused . | . . Traps Extracted . | . . Installed . | . . Triggered . | . . Machines | -11 -10 ---------- Run | Yrd Mat Machines Disabled 2 | . 2 Max in Single Turn 1 | . 1 Machines Repaired . | . . Machines Dismantled . | . . Machines Sabotaged . | . . Overloaded Fab Kills . | . . Hacking | -11 -10 --------- Run | Yrd Mat Machines Accessed 4 | . 4 Terminals 4 | . 4 Fabricators . | . . Repair Stations . | . . Recycling Units . | . . Scanalyzers . | . . Garrison Access . | . . Total Hacks 11 | . 11 Successful 5 | . 5 Failed 6 | . 6 Catastrophic 2 | . 2 Database Lockouts . | . . Manual 5 | . 5 Terminals 11 | . 11 Fabricators . | . . Repair Stations . | . . Recycling Units . | . . Scanalyzers . | . . Garrison Access . | . . Terminal Hacks 5 | . 5 Record 1 | . 1 Robot Analysis 3 | . 3 Registered Components 1 | . 1 Fabricator Hacks . | . . Repair Station Hacks . | . . Recycling Unit Hacks . | . . Scanalyzer . | . . Garrison Access Hacks . | . . Unauthorized Hacks . | . . Terminals . | . . Fabricators . | . . Repair Stations . | . . Recycling Units . | . . Scanalyzers . | . . Garrison Access . | . . Data Cores Recovered . | . . Used . | . . Hacking Detections 4 | . 4 Full Trace Events 1 | . 1 Feedback Events . | . . Feedback Blocked . | . . Robot Schematics Acquired . | . . Robots Built . | . . Authchips . | . . Time . | . . Total Robot Build Rating . | . . Part Schematics Acquired . | . . Parts Built . | . . Authchips . | . . Time . | . . Total Part Build Rating . | . . Part Studies Acquired . | . . Parts Repaired . | . . Time . | . . Parts Recycled . | . . Recycled Matter . | . . Retrieved Matter . | . . Retrieved Components . | . . Parts Scanalyzed . | . . Part Schematics Acquired . | . . Parts Damaged . | . . Bothacking | -11 -10 ------------ Run | Yrd Mat Used RIF Installer . | . . Robots Hacked . | . . Non-combat . | . . Combat . | . . Robot Hacks Applied . | . . Relay Couplers Released . | . . Fabnet Peak Effective % . | . . Robots Rewired . | . . Allies Hacked . | . . Hacks Repelled . | . . Allies | -11 -10 -------- Run | Yrd Mat Total Allies . | . . Largest Group . | . . Highest-Rated Group . | . . Highest-Rated Ally . | . . Total Orders . | . . Ally Attacks . | . . Total Damage . | . . Kills . | . . Allies Corrupted . | . . Allies Melted . | . . Intel | -11 -10 ------- Run | Yrd Mat Active Infowar (turns) 546 | 74 472 Seismic 546 | 74 472 Robot Analysis Total 3 | . 3 Derelict Logs Recovered . | . . Drone Launches . | . . Drone Recoveries . | . . Exploration | -11 -10 ------------- Run | Yrd Mat Turns Passed 660 | 188 472 Spaces Moved 263 | 89 174 Core 4 | 4 . Treads 259 | 85 174 Legs . | . . Wheels . | . . Hover . | . . Flight . | . . Fastest Speed 50 | 50 160 Average Speed 158 | 155 160 Slowest Speed 160 | 160 160 Overloaded Moves . | . . Propulsion Burnouts . | . . Robots Hopped . | . . Potential Cave-ins . | . . Cave-ins Triggered . | . . Exploration Rate (%) 29 | 4 54 Regions Visited 1 Branch Regions . Pre-discovered Areas . | . . Known Exits Taken . | . . Unknown Exits Taken 1 | 1 . Scrap Searched . | . . Spaces Dug . | . . Terrain Destroyed . | . . Melee . | . . Projectile . | . . AOE . | . . Terrain Rammed . | . . Walls Destroyed . | . . Machines Disabled . | . . Actions | -11 -10 --------- Run | Yrd Mat Total 387 | 113 274 Wait 37 | 2 35 Move 262 | 88 174 Hop . | . . Pick Up 8 | 4 4 Fast Attach 10 | 7 3 Attach 4 | . 4 Detach . | . . Swap 7 | 1 6 Drop 4 | . 4 Fire 55 | 11 44 Melee . | . . Ram . | . . Kick . | . . Crush . | . . Escape Stasis . | . . Rewire . | . . Trap . | . . Miscellaneous . | . . Route ------- -11/Scrapyard -10/Materials (discovered 1 exit: [*Min]) History --------- Turn | Location | Event 44 | -11/Scrapyard | Discovered new exit (range 14) 189 | -11/Scrapyard | Entered Materials 309 | -10/Materials | Build established: Mutant 528 | -10/Materials | Discovered new exit (range 13) 641 | -10/Materials | Core integrity fell below 50% 654 | -10/Materials | Core integrity fell below 20% 661 | -10/Materials | Destroyed by G-34 Mercenary with Small Laser Last Messages --------------- Compactor. 00615_ Extracted 4 energy. 00619_ Dropped Lgt. Treads. 00619_ U-05 Engineer works on Material Compactor. 00619_ Critical hit (Burn: +37). 00620_ Ion Engine destroyed. 00620_ U-05 Engineer works on Material Compactor. 00633_ Assault Rifle destroyed. 00635_ Lgt. Treads destroyed. 00641_ G-47 Trooper suffers critical hit (Destroy). 00641_ Destroyed Aluminum Leg. 00645_ Assault Rifle destroyed. 00648_ Lgt. Treads destroyed. 00654_ Machine disabled. 00654_ Destroyed Particle Gun. 00656_ Mining Laser destroyed. 00657_ Lgt. Assault Rifle destroyed. Map ----- +----------------------------------------------------+ | ?????# #????????# #?? ????????????????????????? | | ????## ########## %=#?? ????????????????????????? | | ##### + ## #?? ????????????????????????? | | # # ## ###+####+###?????????????????? | | "" # # """ ## ^ ####?????#????????? | | T" # # """ ## # """ ? #????????? | | "" # # """ ## =# """"" #????????? | | # #= =[ ## ^ # """"" #????????? | | """ # ###+##### # """"" #????????? | | """*# | # """ #????????? | | """ + ""T"" # #????????? | | =# """"" + #????????? | | # # #????????? | | # # #????????? | | # ###############"Y"# ###+#######????????? | | ##### #?????????????#"""# #?# #??????????????? | | ????# #?????????????##### #?# #??????????????? | | ????# #?????????????????# #?# #??????""""????? | | ???# #??????????????#### ### #????? ""T"" ??? | | ???# #??????????????#" ## #???? ??? | | ??# #??????????????#"" ## #???? ?? | | ??# #??????????????#|| ## #??? ?? | | ?# #??????????????#"" < ## #### #? | | ?# #??????????????#|| # #? | | #= #??????????????#" g # #? | | #% #??????????#???#"@g= # #### #? | | +* #?????????? #??####!g ## #???????? | | # ###########+####### !! #???????? | | # ## # !!! #???????? | | ##### ## """ # = #???????? | | #### # """ # """ """ "" #???????? | | #! """ # """ """" ^ T" #???????? | | +% # """ ^ """" ^"" #???????? | | # """ + """" #???????? | | #### # """ # "" #???????? | | ???####### "" # #???????? | | ?????????# # " #???????? | | ?????????# """ # "" " #???????? | | ??????!??# """ # """ "" ??????? | | ?????????# """ + "" "" ????= | | ?????????# # " " "" ????? | | ?????????######### ????? | | ?????????????????# ?????? | | ?????????#?###?### ?????? | | ########+###T### ???????? | | ?????????? | | ???????????? | | ###### ????????????? | | ########+####### #??????+########????????????? | | ?????? ????### ###??????? ??????????????????? | +----------------------------------------------------+ Best States ------------- Heat Dissipation 25 Energy Generation 10 Energy Capacity 250 Matter Stores 300 Matter Capacity 300 Sight Range 16 Terrain Scan Density 10 Evasion (%) 40 Recoil Reduction 2 Item Schematics ----------------- None Robot Schematics ------------------ None Fabricated ------------ Nothing Repaired ---------- Nothing Studied --------- None Alien Tech Used ----------------- None Achievements -------------- None Challenges ------------ None Game ------ Seed GlidesysDiametricAutocannon Manual? 0 Play Time 00:08:19 Cumulative 168.6 hours Start 2026.04.11 @ 20:20:47 End 2026.04.11 @ 20:25:58 Sessions 1 Manual Loads 0 Difficulty Rogue Special Mode None Game No. 240 Rogue 240 Adventurer 0 Explorer 0 Win Type - Total 2 Types 1/0/0/1/0/0/0/0/0/0 Lore% 70 Gallery% 59 Achievement% 45 Wizard Run 0 Options --------- Layout 2 ASCII 0 Keyboard 0 Movement Mouse Keybinds 0 Fullscreen 1 Font 24/Smallcaps Map View 50x44 Zoom Use 0% Tactical HUD 1 Map Filters NONE Filters NONE Steam 1 RUN: 359a4880-65c6-4138-b9a7-e41de58a5cc1